bitfinex/quotes_ETHUSD_20240827
["timestamp","ask_amount","ask_price","bid_price","bid_amount"]
[1724752317359,1.93546746,2675.9,2675.6,2.3868]
[1724752318508,1.93546746,2676.0,2675.8,3.7372]
[1724752318734,9.60256096,2676.2,2675.8,3.7372]
[1724752318735,1.93546746,2675.9,2675.8,3.7372]
[1724752318933,1.93546746,2676.0,2675.7,3.81206767]
[1724752319161,1.93546746,2676.0,2675.7,4.43195644]
[1724752319735,1.93546746,2675.9,2675.7,4.43195644]
[1724752320052,1.93546746,2675.9,2675.7,3.81206767]
[1724752320851,1.93546746,2676.0,2675.7,3.81206767]
[1724752321470,1.93509442,2676.0,2675.7,3.81206767]
[1724752321841,1.93509442,2675.9,2675.7,3.81206767]
[1724752322247,1.93509442,2676.1,2675.9,2.3043]
[1724752322446,1.93509442,2676.3,2675.9,0.0747308]
[1724752322677,1.93509442,2676.4,2676.0,6.06641]
[1724752322875,1.93509442,2676.4,2676.1,0.07472752]
[1724752324187,1.93509442,2676.5,2676.2,2.3693]
[1724752324482,3.0,2676.6,2676.3,0.07472221]
[1724752324483,1.93509442,2676.6,2676.3,0.07472221]
[1724752324688,1.93489642,2676.6,2676.3,0.07472221]
[1724752324998,1.93488834,2676.6,2676.3,0.07472221]
[1724752325166,1.93488834,2676.6,2676.3,1.12786981]
[1724752325481,3.73594,2676.7,2676.4,2.4362]
[1724752325482,1.93488834,2676.7,2676.4,2.4362]
[1724752325683,5.67082834,2676.7,2676.4,2.4362]
[1724752325883,1.93488834,2676.7,2676.4,2.85401936]
[1724752326094,6.05759601,2676.9,2676.4,2.85401936]
[1724752326095,1.93488834,2676.8,2676.4,6.66496637]
[1724752326324,1.93488834,2676.9,2676.6,3.73605]
[1724752326538,3.73546,2677.1,2676.7,2.4747]
[1724752326539,1.93488834,2677.0,2676.7,2.4747]
[1724752326683,5.67034834,2677.1,2676.7,2.4747]
[1724752327021,1.93488834,2677.1,2676.7,6.28534129]
[1724752327183,1.93488834,2677.1,2676.7,3.55155662]
[1724752327184,3.73539,2677.1,2676.7,3.55155662]
[1724752327378,5.67027834,2677.1,2676.7,2.54941129]
[1724752327821,3.73539,2677.1,2676.7,2.54941129]
[1724752328530,1.93488834,2677.2,2676.7,2.54941129]
[1724752328679,1.93488834,2677.2,2676.7,6.28534129]
[1724752328878,5.67019834,2677.2,2676.7,7.28747442]
[1724752329080,5.67019834,2677.2,2676.7,7.28740442]
[1724752329322,3.73531,2677.2,2676.7,7.28740442]
[1724752329496,7.47064,2677.2,2676.7,7.28740442]
[1724752329880,3.73531,2677.2,2676.7,7.28740442]
[1724752330289,1.93236682,2677.3,2676.8,0.72874044]
[1724752330501,3.7358,2676.8,2676.7,2.4747]
[1724752330902,5.66802682,2676.9,2676.7,2.4747]
[1724752331106,3.73566,2676.9,2676.7,2.4747]
[1724752331521,7.47141,2676.9,2676.7,2.4747]
[1724752331733,3.73566,2676.9,2676.7,2.4747]
[1724752332317,1.93236682,2677.0,2676.7,2.4747]
[1724752332524,4.93236682,2677.0,2676.7,2.4747]
[1724752332734,3.73601,2676.7,2676.4,2.4416]
[1724752332892,3.73601,2676.7,2676.1,3.73668]
[1724752332893,3.73615,2676.6,2676.1,3.73668]
[1724752333091,3.73601,2676.7,2676.0,6.552211]
[1724752333350,7.47207,2676.7,2676.1,3.73669]
[1724752333488,3.73601,2676.7,2676.2,3.81134494]
[1724752333687,3.73601,2676.7,2676.3,2.4416]
[1724752333916,8.66709609,2677.0,2676.5,6.1777]
[1724752334150,8.66709609,2677.0,2676.5,6.25241542]
[1724752334652,3.0,2677.0,2676.5,2.51631542]
[1724752334854,3.0,2677.0,2676.5,7.27578096]
[1724752334855,8.66713609,2677.0,2676.5,7.27578096]
[1724752335025,6.73559,2677.0,2676.5,3.53962096]
[1724752335416,8.66713609,2677.0,2676.5,3.53962096]
[1724752335714,3.73588,2676.8,2676.5,2.4416]
[1724752335912,3.73601,2676.7,2676.5,2.4416]
[1724752336929,3.73615,2676.6,2676.1,2.4394]
[1724752337130,3.73632,2676.5,2676.1,2.4394]
[1724752337333,3.73615,2676.6,2676.1,2.4394]
[1724752337334,3.73643,2676.4,2676.1,2.4394]
[1724752337563,3.73664,2676.2,2675.8,2.4394]
[1724752337739,3.73686,2676.1,2675.8,2.4394]
[1724752338126,7.47338,2676.2,2675.8,2.4394]
[1724752338327,3.73679,2676.1,2675.8,2.4394]
[1724752338960,3.73664,2676.2,2675.8,2.4394]
[1724752339135,3.73664,2676.2,2675.8,2.68334]
[1724752340439,3.73679,2676.1,2675.8,2.4394]
[1724752340628,3.73664,2676.2,2675.8,2.4394]
[1724752341396,3.73693,2676.0,2675.8,2.4394]
[1724752341605,4.110623,2676.0,2675.5,6.12064]
[1724752341778,3.73693,2676.0,2675.5,6.12064]
[1724752343907,3.73693,2676.0,2675.5,2.3831]
[1724752344481,3.73693,2676.0,2675.5,6.1207]
[1724752344687,3.73693,2676.0,2675.5,7.11402634]
[1724752345063,3.73682,2676.1,2675.6,3.73745]
[1724752345585,3.73682,2676.1,2675.5,7.11402634]
[1724752345912,3.73693,2676.0,2675.5,10.85156634]
[1724752346069,3.73682,2676.1,2675.5,10.85150634]
[1724752346423,7.47368,2676.1,2675.5,7.11396634]
[1724752346600,3.73707,2675.9,2675.5,6.12064]
[1724752346986,3.7372,2675.8,2675.5,2.3831]
[1724752347417,3.73707,2675.9,2675.5,2.3831]
[1724752348800,3.73693,2676.0,2675.5,6.12061]
[1724752349680,3.73707,2675.9,2675.5,6.12061]
[1724752350326,6.83584253,2676.1,2675.5,6.12061]
[1724752350327,3.73692,2676.0,2675.5,6.12061]
[1724752350819,3.73685,2676.1,2675.6,3.7374]
[1724752351028,3.73685,2676.1,2675.6,3.73738]
[1724752351588,7.47372,2676.1,2675.6,3.73738]
[1724752351782,3.73685,2676.1,2675.6,3.73738]
[1724752352717,7.47374,2676.1,2675.6,3.73738]
[1724752352920,3.73685,2676.1,2675.6,3.73738]
[1724752353822,3.73688,2676.1,2675.5,2.3831]
[1724752354004,3.73713,2675.9,2675.5,2.3831]
[1724752354208,3.73713,2675.9,2675.5,2.4578448]
[1724752354593,1.93037229,2676.1,2675.5,2.4578448]
[1724752354837,1.93037229,2676.4,2676.1,3.73667]
[1724752355124,7.28,2676.5,2676.2,6.14938]
[1724752355290,7.28,2676.5,2676.2,6.22410508]
[1724752355490,7.28,2676.5,2676.2,2.48752508]
[1724752356096,11.01622,2676.5,2676.2,2.48752508]
[1724752356296,11.01622,2676.5,2676.2,2.4128]
[1724752357991,12.94648853,2676.5,2676.2,2.4128]
[1724752358192,3.7365,2676.3,2676.2,2.4128]
[1724752359195,3.73685,2676.1,2675.8,2.4128]
[1724752359618,7.47323,2676.3,2675.8,2.4128]
[1724752359820,3.73667,2676.2,2675.8,2.4128]
[1724752359999,3.73667,2676.2,2675.8,3.027812]
[1724752360325,3.7366,2676.3,2675.8,3.027812]
[1724752360326,9.40349853,2676.3,2675.8,3.027812]
[1724752360498,7.47323,2676.3,2675.8,2.4128]
[1724752360836,3.73657,2676.3,2675.8,2.4128]
[1724752360993,3.73657,2676.3,2675.8,3.1320972]
[1724752361191,7.47316,2676.3,2675.8,3.1320972]
[1724752361444,3.73671,2676.2,2675.8,3.1320972]
[1724752361796,3.73671,2676.2,2675.6,2.3983]
[1724752361797,3.73701,2676.0,2675.6,2.3983]
[1724752363516,3.73718,2675.9,2675.6,2.3983]
[1724752363716,3.73718,2675.9,2675.3,6.2268]
[1724752363981,3.73718,2675.9,2675.4,4.11153]
[1724752364911,1.93070271,2676.0,2675.4,0.37378]
[1724752366235,1.93070271,2676.0,2675.3,2.489]
[1724752367547,1.93070271,2676.0,2675.4,0.07474433]
[1724752367762,1.93070271,2676.1,2675.4,0.07474433]
[1724752367967,1.93070271,2676.1,2675.5,2.3269]
[1724752369242,1.93070271,2676.0,2675.5,2.3269]
[1724752369460,1.93070271,2676.1,2675.5,2.3269]
[1724752370350,1.93070271,2676.0,2675.5,2.3269]
[1724752370537,2.65545731,2676.1,2675.5,2.3269]
[1724752371362,1.93070271,2676.1,2675.5,2.3269]
[1724752371660,3.0,2676.2,2675.7,2.4245]
[1724752371661,1.93008329,2676.2,2675.7,2.4245]
[1724752371865,1.93008329,2676.2,2675.8,0.24992421]
[1724752372040,1.93008329,2676.2,2675.7,2.4245]
[1724752372369,1.93008329,2676.3,2675.8,0.07473686]
[1724752373437,1.93008329,2676.3,2675.9,2.4696]
[1724752373649,9.60107853,2676.5,2676.1,2.4729]
[1724752373827,9.21008329,2676.5,2676.1,2.4729]
[1724752375029,3.0,2676.4,2676.1,2.4729]
[1724752375259,4.93008329,2676.4,2676.2,0.07473118]
[1724752375463,7.28,2676.5,2676.2,0.07473118]
[1724752375464,9.21008329,2676.5,2676.2,0.07473118]
[1724752376696,9.2126578,2676.5,2676.1,2.4729]
[1724752376909,1.9326578,2676.3,2676.1,2.4729]
[1724752377603,1.9326578,2676.2,2676.1,2.4729]
[1724752378064,1.9326578,2676.2,2675.7,2.3413]
[1724752378258,1.9326578,2676.2,2675.8,0.07473326]
[1724752378866,1.9326578,2676.3,2675.8,0.07473326]
[1724752379196,1.9326578,2676.2,2675.8,0.07473326]
[1724752379408,1.9326578,2676.2,2675.8,0.34721317]
[1724752380875,1.93381826,2676.2,2675.7,2.3413]
[1724752381204,1.93381826,2676.1,2675.7,2.3413]
[1724752384473,1.93381826,2676.0,2675.7,2.3413]
[1724752384728,1.93527446,2676.0,2675.7,2.3413]
[1724752384875,2.32232936,2676.3,2675.7,2.3413]
[1724752384876,1.93527446,2676.1,2675.7,2.57543]
[1724752385414,1.93527446,2676.1,2675.9,2.2522]
[1724752385610,1.93527446,2676.1,2676.0,0.07473404]
[1724752385797,1.93527446,2676.1,2676.0,2.2522]
[1724752385976,1.93527446,2676.1,2676.0,2.4848934]
[1724752386169,1.93527446,2676.2,2676.0,2.4848934]
[1724752386809,1.93527446,2676.2,2676.0,2.2522]
[1724752387717,3.0,2676.7,2676.0,2.2522]
[1724752390117,3.0,2676.7,2676.1,0.0747282]
[1724752390324,3.0,2676.7,2676.0,2.2522]
[1724752390494,4.028,2676.7,2676.0,2.2522]
[1724752392005,1.25729383,2676.5,2676.0,2.2522]
[1724752397614,1.9347944,2676.1,2676.0,2.2522]
[1724752398835,1.9347944,2676.2,2676.0,2.2522]
[1724752399327,1.9347944,2676.3,2676.0,2.47742]
[1724752399537,1.9347944,2676.4,2676.1,0.07472884]
[1724752399747,5.64026624,2677.1,2676.1,0.07472884]
[1724752399748,1.9347944,2676.5,2676.3,1.25729383]
[1724752399894,1.9347944,2676.6,2676.4,2.3977]
[1724752400231,1.9347944,2676.7,2676.4,2.3977]
[1724752400435,1.9347944,2676.7,2676.4,2.84539113]
[1724752400737,1.93479152,2676.7,2676.4,2.3977]
[1724752400897,1.93479152,2676.6,2676.4,2.3977]
[1724752402134,1.93479152,2676.7,2676.4,2.3977]
[1724752402441,1.93479152,2676.7,2676.5,0.23977]
[1724752402735,1.93479152,2676.7,2676.4,2.3977]
[1724752403949,1.93479152,2676.7,2676.5,0.07471878]
[1724752404243,1.93479152,2676.8,2676.6,2.2995]
[1724752404452,1.93479152,2676.9,2676.7,0.22995]
[1724752404594,1.93479152,2676.9,2676.6,2.2995]
[1724752404795,1.93479152,2676.9,2676.7,0.07471403]
[1724752405199,3.0,2677.3,2676.7,0.07471403]
[1724752405399,1.93382875,2676.9,2676.7,0.07471403]
[1724752407251,1.93382875,2677.0,2676.7,0.07471403]
[1724752408156,3.0,2677.1,2676.8,2.4538]
[1724752408157,1.93382875,2677.1,2676.8,2.4538]
[1724752408368,2.3205945,2677.3,2677.0,2.4538]
[1724752408369,1.93382875,2677.3,2677.0,2.4538]
[1724752408647,1.93382875,2677.5,2677.0,2.4538]
[1724752408811,2.12721163,2677.5,2677.0,2.4538]
[1724752409013,1.93382875,2677.4,2677.0,2.4538]
[1724752409439,1.93382875,2677.5,2677.0,2.4538]
[1724752409679,1.93382875,2677.5,2677.1,2.52850103]
[1724752409977,1.93382875,2677.5,2677.1,2.4538]
[1724752410155,1.93232637,2677.5,2677.1,2.4538]
[1724752410354,2.31879165,2677.8,2677.1,2.4538]
[1724752410355,1.93232637,2677.6,2677.1,2.4538]
[1724752410766,1.93232637,2677.6,2677.1,2.52849702]
[1724752411169,1.93232637,2677.7,2677.1,2.52849702]
[1724752411490,4.93232637,2677.8,2677.1,2.52849702]
[1724752411660,4.93232637,2677.8,2677.3,2.4538]
[1724752411661,1.93232637,2677.8,2677.3,2.4538]
[1724752411980,1.93232637,2677.8,2677.4,0.07469183]
[1724752412655,1.93232637,2677.9,2677.5,2.4538]
[1724752412978,1.93232637,2677.8,2677.5,2.4538]
[1724752413184,1.93232637,2677.9,2677.5,2.4538]
[1724752413849,1.93232637,2677.8,2677.5,2.4538]
[1724752414044,1.93232637,2677.7,2677.5,2.4538]
[1724752414253,1.93232637,2677.8,2677.5,2.4538]
[1724752414556,4.94905027,2677.9,2677.5,2.4538]
[1724752414756,2.7162078,2677.9,2677.5,2.4538]
[1724752415485,2.50329877,2678.0,2677.5,2.4538]
[1724752415783,3.0,2677.9,2677.5,2.4538]
[1724752415984,4.93232637,2677.9,2677.5,2.4538]
[1724752417397,1.93232637,2677.8,2677.5,2.4538]
[1724752417581,4.93232637,2677.9,2677.5,2.4538]
[1724752417756,5.82297517,2677.9,2677.1,2.3699]
[1724752417957,1.93232637,2677.8,2677.1,2.3699]
[1724752418158,1.93232637,2677.8,2677.1,2.93947665]
[1724752418456,5.82297517,2677.9,2677.1,2.93947665]
[1724752418651,5.82297517,2677.9,2677.1,2.3699]
[1724752419089,5.82297517,2677.9,2677.2,0.07469699]
[1724752419303,5.82297517,2677.9,2677.3,2.471]
[1724752419506,5.82265788,2677.9,2677.3,2.471]
[1724752420700,3.0167239,2677.6,2677.3,2.471]
[1724752420885,3.0167239,2677.6,2677.1,2.2893]
[1724752421296,4.94873298,2677.6,2677.1,2.2893]
[1724752421504,3.0,2677.5,2677.1,2.2893]
[1724752421883,1.93200908,2677.6,2677.1,2.2893]
[1724752421884,4.93200908,2677.7,2677.1,2.2893]
[1724752422100,5.70554256,2677.7,2677.1,2.2893]
[1724752423076,4.93200908,2677.7,2677.1,2.2893]
[1724752423293,3.0,2677.8,2677.3,2.3881]
[1724752423503,7.28,2677.9,2677.4,0.24627984]
[1724752423705,7.28,2677.9,2677.3,2.46279205]
[1724752424020,7.28,2677.9,2677.3,2.3881]
[1724752426439,7.28,2677.9,2677.5,2.4821]
[1724752426733,7.28,2677.9,2677.7,2.2703]
[1724752427719,3.0,2678.1,2677.7,2.2703]
[1724752428019,4.93200908,2678.3,2677.7,2.2703]
[1724752428836,4.93139883,2678.3,2677.7,2.2703]
[1724752429423,1.93139883,2678.3,2677.7,2.49733]
[1724752429731,1.93139883,2678.4,2677.7,2.49733]
[1724752429894,29.7967239,2678.6,2677.7,2.49733]
[1724752429895,1.93139883,2678.5,2677.7,2.49733]
[1724752430097,1.93139883,2678.5,2677.8,2.577733]
[1724752430391,1.93139883,2678.5,2677.8,2.328]
[1724752430740,1.93139883,2678.5,2677.9,0.07468157]
[1724752430904,10.2967239,2678.6,2677.8,2.328]
[1724752430905,3.0167239,2678.2,2677.8,2.328]
[1724752431306,1.30053412,2678.5,2677.8,2.328]
[1724752431307,4.94812273,2678.4,2677.8,2.328]
[1724752431610,4.93139883,2678.3,2677.8,2.328]
[1724752431827,5.97073305,2678.3,2677.8,2.328]
[1724752432651,4.03933422,2678.3,2677.8,2.328]
[1724752433146,8.32863305,2678.3,2677.2,2.4145]
[1724752433349,8.32863305,2678.3,2677.4,2.4145]
[1724752433350,3.0658831,2678.2,2677.4,2.4145]
[1724752433552,1.1345357,2678.2,2677.4,2.4145]
[1724752434053,1.1345357,2678.2,2677.6,2.4145]
[1724752434251,3.0,2678.3,2677.8,2.4145]
[1724752434723,4.9313474,2678.5,2678.0,2.4145]
[1724752434926,4.9480713,2678.4,2678.0,2.4145]
[1724752435126,1.9313474,2678.3,2678.0,2.4145]
[1724752435338,1.9313474,2678.4,2678.0,2.4145]
[1724752435549,1.25976169,2678.4,2678.0,2.4145]
[1724752439389,3.0,2678.5,2678.0,2.4145]
[1724752439668,4.93149912,2678.5,2678.0,2.4145]
[1724752441264,7.94822302,2678.5,2678.0,2.4145]
[1724752441664,1.93263974,2678.4,2678.0,2.4145]
[1724752441877,3.81166026,2678.3,2677.5,0.07467819]
[1724752442042,3.0167239,2677.9,2677.7,2.3729]
[1724752442369,3.0,2678.2,2677.7,2.3729]
[1724752442370,1.93263974,2678.0,2677.7,2.3729]
[1724752442532,0.19326397,2677.9,2677.7,2.3729]
[1724752442727,1.93263974,2678.0,2677.7,2.3729]
[1724752443779,1.93263974,2677.9,2677.7,2.3729]
[1724752444144,1.93263974,2677.9,2676.9,2.2801]
[1724752444344,1.93263974,2677.8,2677.0,2.50811]
[1724752444555,1.93263974,2677.8,2677.0,2.2801]
[1724752444759,1.93263974,2677.8,2677.1,2.35479106]
[1724752445743,1.93263974,2677.8,2677.2,2.39639103]
[1724752445983,1.93263974,2677.8,2677.4,2.3217]
[1724752446492,1.93595603,2677.7,2677.4,2.3217]
[1724752449689,1.93595603,2677.5,2677.4,2.3217]
[1724752449878,2.12955163,2677.5,2677.4,2.3217]
[1724752450076,1.93595603,2677.6,2677.4,2.3217]
[1724752450287,0.39097232,2677.5,2677.4,2.3217]
[1724752450517,2.32692835,2677.5,2677.4,2.3217]
[1724752451222,1.9387264,2677.5,2677.4,2.3217]
[1724752451578,1.93933641,2677.5,2677.4,2.3217]
[1724752451777,3.73473,2677.6,2677.4,2.3217]
[1724752452004,1.93941127,2677.5,2677.4,2.3217]
[1724752453625,3.73521,2677.3,2677.0,2.4401]
[1724752453826,1.93978952,2677.1,2677.0,2.4401]
[1724752454126,1.25613393,2677.2,2677.0,2.4401]
[1724752454876,1.93960426,2677.1,2677.0,2.4401]
[1724752455889,1.9396507,2677.1,2677.0,2.4401]
[1724752456088,1.9396507,2677.2,2677.0,2.4401]
[1724752456481,3.19578463,2677.2,2677.0,2.4401]
[1724752456800,1.9396507,2677.1,2677.0,2.4401]
[1724752457897,1.9396507,2677.2,2677.0,2.4401]
[1724752459597,1.9396507,2677.2,2677.1,3.73538]
[1724752460032,1.9396507,2677.2,2677.0,2.4401]
[1724752460434,1.9396507,2677.1,2677.0,2.4401]
[1724752460601,5.67392198,2677.1,2676.8,2.2501]
[1724752460791,1.25613393,2677.0,2676.8,2.2501]
[1724752463615,3.19466591,2677.2,2676.8,5.98589]
[1724752463809,1.25613393,2677.2,2676.8,6.958071]
[1724752465307,1.25613393,2677.2,2676.9,3.73565]
[1724752465709,1.25613393,2677.2,2676.8,6.958081]
[1724752465908,1.25613393,2677.2,2677.0,2.3467]
[1724752467247,1.25613393,2677.2,2677.1,3.73538]
[1724752467752,2.32884129,2677.4,2677.2,3.73524]
[1724752467753,0.39098032,2677.4,2677.2,3.73524]
[1724752467904,3.39098032,2677.4,2677.3,0.606024]
[1724752468104,0.39098032,2677.4,2677.3,4.341124]
[1724752468304,0.39098032,2677.4,2677.1,2.325]
[1724752468937,1.64711425,2677.4,2677.1,2.325]
[1724752469341,1.25613393,2677.2,2677.1,2.325]
[1724752469750,1.25613393,2677.2,2676.7,2.3083]
[1724752469953,1.25613393,2677.0,2676.7,2.3083]
[1724752470251,1.25613393,2676.8,2676.7,2.3083]
[1724752471211,1.25613393,2676.8,2676.4,2.394]
[1724752471212,3.73609,2676.6,2676.4,2.394]
[1724752471435,1.25613393,2676.5,2676.4,2.394]
[1724752471772,1.25613393,2676.5,2676.0,6.13083]
[1724752472249,5.67381097,2676.7,2676.0,2.394]
[1724752472407,3.7363,2676.5,2676.0,2.394]
[1724752472611,3.73637,2676.4,2676.0,2.394]
[1724752473428,7.47283,2676.4,2676.0,2.394]
[1724752473623,3.3909687,2676.5,2676.0,2.394]
[1724752473830,3.0173387,2676.5,2676.0,2.394]
[1724752474233,6.7535687,2676.5,2676.0,2.394]
[1724752474468,3.0173387,2676.5,2676.0,2.394]
[1724752474765,3.73615,2676.6,2676.0,2.394]
[1724752476570,3.73615,2676.6,2676.0,6.13088]
[1724752477532,6.7531987,2676.8,2676.1,3.73669]
[1724752477778,3.0,2676.7,2676.2,2.3852]
[1724752478370,3.0,2676.7,2676.3,3.73648]
[1724752478677,3.0,2676.7,2676.2,2.3852]
[1724752479030,7.54886246,2676.7,2676.2,2.3852]
[1724752479627,3.0,2676.7,2676.2,6.12175]
[1724752480996,3.0,2676.7,2676.2,2.3852]
[1724752482306,0.39093095,2676.6,2676.2,2.3852]
[1724752482898,4.12702095,2676.6,2676.2,2.3852]
[1724752483060,3.73609,2676.6,2676.2,2.3852]
[1724752483659,3.73629,2676.5,2676.2,2.3852]
[1724752486393,10.47203,2676.7,2676.2,2.3852]
[1724752486696,6.73595,2676.7,2676.2,2.3852]
[1724752486858,3.7361,2676.6,2676.2,2.3852]
[1724752488137,3.0,2676.7,2676.2,6.12182]
[1724752488419,3.0,2676.7,2676.2,6.734017]
[1724752489023,3.0,2676.7,2676.4,6.00596]
[1724752489220,3.0,2676.8,2676.4,6.00596]
[1724752489882,3.0,2676.8,2676.4,2.2697]
[1724752490112,6.73583,2676.8,2676.4,2.2697]
[1724752491322,3.0,2676.8,2676.4,2.2697]
[1724752491927,3.0,2676.8,2676.4,3.25144558]
[1724752492228,3.0,2676.8,2676.4,6.98779558]
[1724752492521,3.0,2676.8,2676.4,3.25144558]
[1724752493024,3.0,2676.8,2676.4,6.98772558]
[1724752493208,3.0,2676.8,2676.4,3.25144558]
[1724752493613,6.73582,2676.8,2676.4,3.25144558]
[1724752494012,7.99279934,2676.8,2676.4,3.25144558]
[1724752494603,1.25697934,2676.6,2676.4,2.2697]
[1724752494869,4.99314934,2676.6,2676.2,2.3236]
[1724752495554,3.73625,2676.5,2676.2,2.3236]
[1724752496956,1.25697934,2676.6,2676.2,2.3236]
[1724752497158,1.25697934,2676.6,2676.2,2.93711469]
[1724752497343,1.93629352,2676.7,2676.3,2.45422178]
[1724752497727,5.67231352,2676.7,2676.3,2.45422178]
[1724752498345,3.73602,2676.7,2676.3,2.45422178]
[1724752498528,5.67388435,2676.7,2676.3,2.45422178]
[1724752498861,9.40990435,2676.7,2676.3,2.45422178]
[1724752499430,5.67388435,2676.7,2676.3,2.45422178]
[1724752499833,4.99306934,2676.6,2676.3,2.3795]
[1724752500763,1.25697934,2676.4,2676.3,2.3795]
[1724752501056,1.25697934,2676.4,2675.6,6.0557]
[1724752501057,3.73672,2676.2,2675.6,6.0557]
[1724752501260,1.25697934,2675.9,2675.6,7.035024]
[1724752501443,1.25697934,2676.1,2675.8,2.3457]
[1724752501776,4.99378934,2676.1,2675.8,2.3457]
[1724752501941,1.25697934,2676.1,2675.8,2.3457]
[1724752503326,1.25697934,2676.1,2675.8,3.05940922]
[1724752503670,3.73668,2676.2,2675.8,3.05940922]
[1724752503828,4.93803144,2676.4,2676.0,3.7369]
[1724752504026,4.93803144,2676.4,2676.1,2.3692]
[1724752504027,3.0,2676.4,2676.1,2.3692]
[1724752504432,4.93803144,2676.5,2676.1,2.3692]
[1724752504673,1.93803144,2676.4,2676.1,2.3692]
[1724752504877,4.93803144,2676.4,2676.1,2.3692]
[1724752505085,1.93803144,2676.4,2676.1,2.3692]
[1724752506567,8.67427144,2676.5,2676.1,2.3692]
[1724752506770,3.73638,2676.4,2676.1,2.3692]
[1724752506973,3.0,2676.3,2676.1,2.3692]
[1724752507525,6.73651,2676.3,2676.1,2.3692]
[1724752507735,6.17910958,2676.3,2676.0,2.4011]
[1724752507971,3.73664,2676.2,2676.0,2.4011]
[1724752508126,8.67453144,2676.3,2676.0,2.4011]
[1724752508575,12.41110144,2676.3,2676.0,2.4011]
[1724752508755,3.73678,2676.1,2676.0,2.4011]
[1724752509445,4.93803144,2676.3,2676.0,2.4011]
[1724752509446,3.0,2676.3,2676.2,3.73664]
[1724752509628,4.93878414,2676.5,2676.3,2.4011]
[1724752509832,3.0,2676.4,2676.3,2.4011]
[1724752510032,8.67487414,2676.6,2676.3,2.4011]
[1724752510602,3.73636,2676.4,2676.3,2.4011]
[1724752510879,6.73636,2676.4,2676.3,2.4011]
[1724752511736,6.73636,2676.4,2676.1,2.3237]
[1724752511737,8.6755902,2676.4,2676.1,2.3237]
[1724752511936,3.73659,2676.3,2676.1,2.3237]
[1724752512146,5.6758202,2676.3,2676.1,2.3237]
[1724752512978,8.6755902,2676.4,2676.1,2.3237]
[1724752513177,3.0,2676.4,2676.1,2.56354289]
[1724752513481,3.0,2676.4,2676.1,2.63826923]
[1724752513687,3.0,2676.4,2676.1,6.37503923]
[1724752513846,1.9392302,2676.4,2676.1,2.63826923]
[1724752514050,3.0,2676.4,2676.1,2.63826923]
[1724752514356,4.9392302,2676.4,2676.1,2.63826923]
[1724752515256,4.9392302,2676.4,2676.3,2.452]
[1724752515787,3.0,2676.4,2676.3,2.452]
[1724752515947,6.73636,2676.4,2676.3,2.452]
[1724752516147,3.0,2676.4,2676.3,2.452]
[1724752518709,6.62180017,2677.0,2676.3,3.01706665]
[1724752518710,2.72293608,2677.0,2676.3,3.01706665]
[1724752518848,2.72293608,2677.0,2676.9,3.73566]
[1724752518849,2.33482808,2677.0,2676.9,3.73566]
[1724752519051,2.33202627,2677.3,2677.0,3.73549]
[1724752519052,1.94405988,2677.3,2677.0,3.73549]
[1724752519254,1.94405988,2677.3,2677.1,2.4979]
[1724752519554,1.94405988,2677.4,2677.1,2.4979]
[1724752519883,1.94405988,2677.4,2677.3,2.4979]
[1724752520372,1.94181457,2677.5,2677.3,2.4979]
[1724752522360,2.33017749,2677.8,2677.3,2.4979]
[1724752522361,1.94181457,2677.6,2677.3,2.4979]
[1724752522978,1.94181457,2677.5,2677.3,2.4979]
[1724752523311,1.94181457,2677.5,2677.0,2.4983]
[1724752523607,1.94181457,2677.5,2677.0,3.19639739]
[1724752524252,4.94181457,2677.6,2677.0,3.19639739]
[1724752524455,3.0,2677.6,2677.0,6.93190739]
[1724752524650,4.94181457,2677.6,2677.2,6.11412]
[1724752524894,1.94181457,2677.7,2677.2,2.45359518]
[1724752525114,1.93961264,2677.8,2677.5,3.73481]
[1724752525251,1.93961264,2678.0,2677.6,2.3839]
[1724752525456,1.93961264,2678.0,2677.6,6.11855]
[1724752525686,1.93961264,2678.1,2677.7,3.73453]
[1724752525884,1.93961264,2678.1,2677.7,3.80921178]
[1724752526330,2.32753516,2678.4,2677.7,3.80921178]
[1724752526331,1.93961264,2678.2,2677.7,3.80921178]
[1724752526498,1.93961264,2678.2,2678.0,2.4246]
[1724752526698,1.93961264,2678.3,2678.0,2.4246]
[1724752526905,2.32753516,2678.6,2678.0,2.4246]
[1724752526906,1.93961264,2678.4,2678.0,2.4246]
[1724752527116,2.36632742,2678.4,2678.0,2.4992749]
[1724752527531,1.93961264,2678.4,2678.0,2.4992749]
[1724752527833,1.93961264,2678.4,2678.0,2.4246]
[1724752528289,1.93961264,2678.5,2678.0,2.4246]
[1724752529218,3.01706665,2678.2,2676.4,0.2452]
[1724752529531,3.01706665,2677.3,2676.8,2.4434]
[1724752529736,5.67440264,2677.6,2676.9,3.73566]
[1724752530041,3.0,2677.5,2676.9,3.73566]
[1724752530215,3.0,2677.5,2676.8,2.4434]
[1724752530216,0.79566793,2677.5,2676.8,2.4434]
[1724752530418,6.75203665,2677.4,2676.8,2.4434]
[1724752530622,3.01706665,2677.4,2676.8,2.4434]
[1724752531883,3.01706665,2677.4,2676.8,6.17918]
[1724752532089,3.0,2677.5,2676.8,7.17068]
[1724752532516,3.0,2677.5,2676.9,3.73563]
[1724752532925,8.67448264,2677.5,2676.8,3.4349]
[1724752533294,8.67448264,2677.5,2676.8,2.4434]
[1724752534038,6.73487,2677.5,2676.8,2.4434]
[1724752534185,8.66935169,2677.5,2676.8,2.4434]
[1724752534625,3.73506,2677.4,2676.8,2.4434]
[1724752534996,7.31074834,2677.4,2676.5,2.4726]
[1724752535190,3.7354,2677.1,2676.5,2.4726]
[1724752537488,6.75246665,2677.1,2676.5,2.4726]
[1724752539317,10.48793665,2677.1,2676.5,2.4726]
[1724752539630,10.48793665,2677.1,2674.8,8.15101966]
[1724752539631,3.73575,2676.9,2676.1,2.3036]
[1724752540042,10.47125,2677.0,2676.2,3.73654]
[1724752540198,6.73561,2677.0,2676.3,3.73648]
[1724752541306,3.0,2677.0,2676.6,2.4296]
[1724752541511,3.0,2677.0,2676.9,3.73566]